[Event "IIFL Wealth 4th Mumbai GM"]
[Site "Mumbai"]
[Date "2019.01.04"]
[Round "6"]
[White "Stupak, Kirill"]
[Black "Phadke Sohan"]
[Result "1-0"]
[ECO "A04"]
[WhiteElo "2557"]
[BlackElo "2191"]
[Annotator "ChessBase"]
[PlyCount "69"]
[EventDate "2018.12.30"]
[EventType "swiss"]
[EventCountry "IND"]
[SourceTitle "playchess.com"]
[Source "ChessBase"]
[SourceQuality "1"]
[TimeControl "40/5400+30:1800+30"]

1. Nf3 {[%emt 0:00:00]} c5 {[%emt 0:06:08]} 2. c4 {[%emt 0:00:16]} Nc6 {[%emt 0:00:06]} 3. Nc3 {[%emt 0:00:53]} e5 {[%emt 0:04:45]} 4. e3 {[%emt 0:00:20]} Nf6 {[%emt 0:00:47]} 5. d4 {[%emt 0:00:18]} cxd4 {[%emt 0:00:31]} 6. exd4 {[%emt 0:00:05]} e4 {[%emt 0:00:06]} 7. Ne5 {[%emt 0:00:25]} Bd6 {[%emt 0:05:54]} 8. c5 {[%emt 0:05:45]} Bb8 {[%emt 0:10:58]} 9. Nc4 {[%emt 0:07:37]} d5 {[%emt 0:09:07]} 10. cxd6 {[%emt 0:00:25]} O-O {[%emt 0:01:23]} 11. Bf4 {[%emt 0:09:18]} Na5 {[%emt 0:06:14]} 12. Nxa5 {[%emt 0:01:49]} Qxa5 {[%emt 0:00:10]} 13. Qb3 {[%emt 0:00:02]} Qf5 {[%emt 0:10:56]} 14. Bg3 {[%emt 0:00:21]} a6 {[%emt 0:04:54]} 15. Be2 {[%emt 0:04:56]} Be6 {[%emt 0:04:31]} 16. Qxb7 {[%emt 0:18:24]} Ba7 {[%emt 0:07:29]} 17. O-O {[%emt 0:04:15]} Bxd4 {[%emt 0:03:08]} 18. Qb4 {[%emt 0:02:40]} Bc5 {[%emt 0:02:05]} 19. Qa4 {[%emt 0:00:01]} Rfd8 {[%emt 0:02:16]} 20. Rad1 {[%emt 0:00:18]} Rab8 {[%emt 0:00:33]} 21. Qc2 {[%emt 0:00:52]} h5 {[%emt 0:00:42]} 22. h3 {[%emt 0:05:18]} Qg5 {[%emt 0:02:56]} 23. Kh1 {[%emt 0:01:50]} h4 {[%emt 0:03:18]} 24. Bh2 {[%emt 0:00:07]} Qf5 {[%emt 0:00:13]} 25. Bxa6 {[%emt 0:06:55]} Ba7 {[%emt 0:02:25]} 26. Be2 {[%emt 0:12:02]} Qc5 {[%emt 0:00:41]} 27. Qd2 {[%emt 0:01:14]} Rb4 {[%emt 0:01:45]} 28. b3 {[%emt 0:02:08]} Qc6 {[%emt 0:01:55]} 29. Qg5 {[%emt 0:08:16]} Qxc3 {[%emt 0:06:39]} 30. Be5 {[%emt 0:00:05]} Qc5 {[%emt 0:00:01]} 31. Bxf6 {[%emt 0:00:33]} Qxg5 {[%emt 0:00:01]} 32. Bxg5 {[%emt 0:00:01]} f6 {[%emt 0:00:16]} 33. Bxh4 {[%emt 0:00:22]} Rb6 {[%emt 0:00:53]} 34. Bg3 {[%emt 0:00:22]} Bb8 {[%emt 0:00:04]} 35. Rd4 {[%emt 0:00:12]} 1-0

[Event "IIFL Wealth 4th Mumbai GM"]
[Site "Mumbai"]
[Date "2019.01.04"]
[Round "6"]
[White "Visakh N R"]
[Black "Deepan Chakkravarthy J."]
[Result "1-0"]
[ECO "C07"]
[WhiteElo "2491"]
[BlackElo "2550"]
[Annotator "ChessBase"]
[PlyCount "65"]
[EventDate "2018.12.30"]
[EventType "swiss"]
[EventCountry "IND"]
[SourceTitle "playchess.com"]
[Source "ChessBase"]
[SourceQuality "1"]
[TimeControl "40/5400+30:1800+30"]

1. d4 {[%emt 0:00:00]} e6 {[%emt 0:00:05]} 2. e4 {[%emt 0:00:00]} d5 {[%emt 0:00:05]} 3. Nd2 {[%emt 0:00:03]} c5 {[%emt 0:00:05]} 4. exd5 {[%emt 0:01:01]} Qxd5 {[%emt 0:00:59]} 5. Ngf3 {[%emt 0:00:36]} cxd4 {[%emt 0:00:06]} 6. Bc4 {[%emt 0:00:05]} Qd6 {[%emt 0:00:07]} 7. O-O {[%emt 0:00:11]} Nf6 {[%emt 0:02:32]} 8. Nb3 {[%emt 0:01:32]} Nc6 {[%emt 0:00:06]} 9. Nbxd4 {[%emt 0:00:08]} Nxd4 {[%emt 0:00:05]} 10. Nxd4 {[%emt 0:00:10]} a6 {[%emt 0:00:05]} 11. Re1 {[%emt 0:01:41]} Qc7 {[%emt 0:00:33]} 12. Bf1 {[%emt 0:00:39]} Bd6 {[%emt 0:14:07]} 13. Nf5 {[%emt 0:02:22]} Bxh2+ {[%emt 0:01:17]} 14. Kh1 {[%emt 0:00:05]} O-O {[%emt 0:00:04]} 15. Nxg7 {[%emt 0:01:44]} Kxg7 {[%emt 0:00:15]} 16. Qd4 {[%emt 0:00:47]} e5 {[%emt 0:07:53]} 17. Qh4 {[%emt 0:00:55]} Ng4 {[%emt 0:00:10]} 18. Be2 {[%emt 0:00:05]} Bf4 {[%emt 0:24:21]} 19. Bxg4 {[%emt 0:39:50]} Qxc2 {[%emt 0:12:06]} 20. Bf3 {[%emt 0:05:12]} Qg6 {[%emt 0:11:20]} 21. Bxf4 {[%emt 0:00:31]} exf4 {[%emt 0:00:02]} 22. Qxf4 {[%emt 0:00:34]} Be6 {[%emt 0:03:34]} 23. Bxb7 {[%emt 0:02:14]} Rab8 {[%emt 0:00:03]} 24. Qd4+ {[%emt 0:09:23]} Qf6 {[%emt 0:01:35]} 25. Re5 {[%emt 0:01:08]} Kh8 {[%emt 0:00:03]} 26. Bxa6 {[%emt 0:02:11]} Rg8 {[%emt 0:06:35]} 27. Bf1 {[%emt 0:05:23]} Rgd8 {[%emt 0:14:45]} 28. Qc3 {[%emt 0:00:59]} Rd2 {[%emt 0:00:02]} 29. Rb5 {[%emt 0:02:52]} Qxc3 {[%emt 0:00:03]} 30. Rxb8+ {[%emt 0:00:05]} Qc8 {[%emt 0:00:04]} 31. Rxc8+ {[%emt 0:00:03]} Bxc8 {[%emt 0:00:02]} 32. b4 {[%emt 0:03:05]} Rxf2 {[%emt 0:00:28]} 33. a4 {[%emt 0:00:01]} 1-0

[Event "IIFL Wealth 4th Mumbai GM"]
[Site "Mumbai"]
[Date "2019.01.04"]
[Round "6"]
[White "Rahman, Ziaur"]
[Black "Tran, Minh Thang"]
[Result "1-0"]
[ECO "A05"]
[WhiteElo "2468"]
[BlackElo "2342"]
[Annotator "ChessBase"]
[PlyCount "51"]
[EventDate "2018.12.30"]
[EventType "swiss"]
[EventCountry "IND"]
[SourceTitle "playchess.com"]
[Source "ChessBase"]
[SourceQuality "1"]
[TimeControl "40/5400+30:1800+30"]

1. Nf3 {[%emt 0:00:00]} Nf6 {[%emt 0:00:00]} 2. c4 {[%emt 0:00:09]} e6 {[%emt 0:00:33]} 3. g3 {[%emt 0:01:42]} b6 {[%emt 0:00:14]} 4. Bg2 {[%emt 0:00:07]} Bb7 {[%emt 0:00:08]} 5. O-O {[%emt 0:00:07]} Be7 {[%emt 0:00:07]} 6. b3 {[%emt 0:00:55]} O-O {[%emt 0:00:18]} 7. Bb2 {[%emt 0:01:46]} d5 {[%emt 0:00:29]} 8. e3 {[%emt 0:07:11]} c5 {[%emt 0:04:01]} 9. Qe2 {[%emt 0:03:43]} Nc6 {[%emt 0:00:38]} 10. Rd1 {[%emt 0:00:49]} Qc7 {[%emt 0:05:16]} 11. Nc3 {[%emt 0:02:57]} dxc4 {[%emt 0:03:05]} 12. bxc4 {[%emt 0:00:09]} Rad8 {[%emt 0:00:11]} 13. d3 {[%emt 0:09:18]} Qb8 {[%emt 0:09:23]} 14. Rab1 {[%emt 0:01:25]} Qa8 {[%emt 0:10:26]} 15. Ne1 {[%emt 0:01:48]} Rd7 {[%emt 0:01:54]} 16. f4 {[%emt 0:01:42]} Rfd8 {[%emt 0:00:12]} 17. a3 {[%emt 0:07:32]} Bd6 {[%emt 0:13:11]} 18. Nf3 {[%emt 0:05:21]} Bb8 {[%emt 0:05:16]} 19. Ba1 {[%emt 0:10:59]} Re8 {[%emt 0:06:04]} 20. Ng5 {[%emt 0:05:39]} Ne7 {[%emt 0:03:47]} 21. Nce4 {[%emt 0:05:13]} Nxe4 {[%emt 0:00:56]} 22. dxe4 {[%emt 0:01:16]} Rxd1+ {[%emt 0:00:25]} 23. Rxd1 {[%emt 0:00:06]} h6 {[%emt 0:00:18]} 24. Nxf7 {[%emt 0:01:40]} Bxf4 {[%emt 0:17:50]} 25. exf4 {[%emt 0:01:51]} Kxf7 {[%emt 0:00:37]} 26. Qh5+ {[%emt 0:00:46]} 1-0

[Event "IIFL Wealth 4th Mumbai GM"]
[Site "Mumbai"]
[Date "2019.01.04"]
[Round "6"]
[White "Ankit, R. Rajpara"]
[Black "Balasubramaniam H"]
[Result "1/2-1/2"]
[ECO "A46"]
[WhiteElo "2465"]
[BlackElo "2270"]
[Annotator "ChessBase"]
[PlyCount "76"]
[EventDate "2018.12.30"]
[EventType "swiss"]
[EventCountry "IND"]
[SourceTitle "playchess.com"]
[Source "ChessBase"]
[SourceQuality "1"]
[TimeControl "40/5400+30:1800+30"]

1. d4 {[%emt 0:00:00]} Nf6 {[%emt 0:00:17]} 2. Nf3 {[%emt 0:00:00]} e6 {[%emt 0:00:16]} 3. Bf4 {[%emt 0:00:05]} b6 {[%emt 0:01:15]} 4. e3 {[%emt 0:01:13]} Bb7 {[%emt 0:00:04]} 5. Bd3 {[%emt 0:00:27]} Be7 {[%emt 0:01:14]} 6. h3 {[%emt 0:06:44]} Ne4 {[%emt 0:04:49]} 7. c4 {[%emt 0:06:14]} O-O {[%emt 0:09:36]} 8. Nbd2 {[%emt 0:11:09]} f5 {[%emt 0:04:27]} 9. Qc2 {[%emt 0:05:13]} Bb4 {[%emt 0:02:48]} 10. O-O {[%emt 0:06:49]} Nxd2 {[%emt 0:00:16]} 11. Nxd2 {[%emt 0:00:06]} Bxd2 {[%emt 0:02:17]} 12. Qxd2 {[%emt 0:00:15]} d6 {[%emt 0:01:05]} 13. Rae1 {[%emt 0:23:36]} h6 {[%emt 0:17:58]} 14. Bg3 {[%emt 0:13:52]} Qf6 {[%emt 0:04:04]} 15. c5 {[%emt 0:09:44]} e5 {[%emt 0:07:08]} 16. cxd6 {[%emt 0:09:31]} cxd6 {[%emt 0:00:06]} 17. dxe5 {[%emt 0:01:09]} dxe5 {[%emt 0:00:10]} 18. Rd1 {[%emt 0:01:49]} Kh8 {[%emt 0:05:28]} 19. Qc3 {[%emt 0:00:51]} Nc6 {[%emt 0:06:53]} 20. Bb5 {[%emt 0:00:10]} f4 {[%emt 0:01:17]} 21. exf4 {[%emt 0:00:07]} exf4 {[%emt 0:00:08]} 22. Qxf6 {[%emt 0:00:28]} Rxf6 {[%emt 0:00:04]} 23. Rd7 {[%emt 0:01:16]} a6 {[%emt 0:01:49]} 24. Rxb7 {[%emt 0:00:34]} axb5 {[%emt 0:00:10]} 25. Bh2 {[%emt 0:00:22]} Rxa2 {[%emt 0:02:07]} 26. Rxb6 {[%emt 0:00:12]} Rxb2 {[%emt 0:01:10]} 27. Bxf4 {[%emt 0:00:19]} Rxf4 {[%emt 0:00:14]} 28. Rxc6 {[%emt 0:00:04]} b4 {[%emt 0:00:50]} 29. Rb6 {[%emt 0:01:09]} Kh7 {[%emt 0:04:05]} 30. Rb7 {[%emt 0:00:13]} Kg6 {[%emt 0:00:25]} 31. Kh2 {[%emt 0:00:56]} Rfxf2 {[%emt 0:02:11]} 32. Rxf2 {[%emt 0:00:06]} Rxf2 {[%emt 0:00:08]} 33. Rxb4 {[%emt 0:00:04]} Ra2 {[%emt 0:00:32]} 34. Rb6+ {[%emt 0:00:07]} Kf7 {[%emt 0:00:16]} 35. Rb7+ {[%emt 0:00:02]} Kg6 {[%emt 0:00:06]} 36. Rb6+ {[%emt 0:00:03]} Kf7 {[%emt 0:00:05]} 37. Rb7+ {[%emt 0:00:03]} Kg6 {[%emt 0:00:05]} 38. Rb6+ {[%emt 0:00:04]} Kf7 {[%emt 0:00:13]} 1/2-1/2

[Event "IIFL Wealth 4th Mumbai GM"]
[Site "Mumbai"]
[Date "2019.01.04"]
[Round "6"]
[White "Sundararajan, Kidambi"]
[Black "Praveen Kumar C"]
[Result "1-0"]
[ECO "C01"]
[WhiteElo "2458"]
[BlackElo "2233"]
[Annotator "ChessBase"]
[PlyCount "111"]
[EventDate "2018.12.30"]
[EventType "swiss"]
[EventCountry "IND"]
[SourceTitle "playchess.com"]
[Source "ChessBase"]
[SourceQuality "1"]
[TimeControl "40/5400+30:1800+30"]

1. e4 {[%emt 0:00:00]} e6 {[%emt 0:00:50]} 2. d4 {[%emt 0:00:00]} d5 {[%emt 0:00:07]} 3. exd5 {[%emt 0:00:16]} exd5 {[%emt 0:00:05]} 4. c4 {[%emt 0:00:45]} Nf6 {[%emt 0:02:01]} 5. Nc3 {[%emt 0:00:10]} Bb4 {[%emt 0:00:24]} 6. Bd3 {[%emt 0:00:28]} O-O {[%emt 0:00:39]} 7. Nge2 {[%emt 0:00:21]} dxc4 {[%emt 0:06:31]} 8. Bxc4 {[%emt 0:01:24]} Nbd7 {[%emt 0:00:17]} 9. O-O {[%emt 0:00:52]} Nb6 {[%emt 0:01:20]} 10. Bb3 {[%emt 0:01:15]} c6 {[%emt 0:00:23]} 11. Bg5 {[%emt 0:04:17]} Be7 {[%emt 0:00:40]} 12. Re1 {[%emt 0:02:03]} Bg4 {[%emt 0:17:24]} 13. Qd3 {[%emt 0:03:55]} Qd7 {[%emt 0:00:38]} 14. Ng3 {[%emt 0:06:01]} Rad8 {[%emt 0:09:20]} 15. Bc2 {[%emt 0:10:32]} g6 {[%emt 0:00:55]} 16. Rxe7 {[%emt 0:11:18]} Qxe7 {[%emt 0:00:07]} 17. Nge4 {[%emt 0:00:27]} Nbd7 {[%emt 0:05:10]} 18. Qg3 {[%emt 0:28:52]} Nxe4 {[%emt 0:09:07]} 19. Nxe4 {[%emt 0:00:10]} f6 {[%emt 0:00:47]} 20. Bf4 {[%emt 0:02:05]} Be6 {[%emt 0:06:45]} 21. Bd6 {[%emt 0:00:48]} Qf7 {[%emt 0:00:14]} 22. Bxf8 {[%emt 0:00:46]} Nxf8 {[%emt 0:01:00]} 23. Re1 {[%emt 0:06:36]} Bd5 {[%emt 0:09:03]} 24. h4 {[%emt 0:07:00]} Kg7 {[%emt 0:06:14]} 25. Nd6 {[%emt 0:01:25]} Qd7 {[%emt 0:03:17]} 26. Nf5+ {[%emt 0:02:09]} Kf7 {[%emt 0:00:13]} 27. Nh6+ {[%emt 0:01:40]} Kg7 {[%emt 0:00:02]} 28. Nf5+ {[%emt 0:00:11]} Kf7 {[%emt 0:00:18]} 29. Re7+ {[%emt 0:00:17]} Qxe7 {[%emt 0:00:02]} 30. Nxe7 {[%emt 0:00:08]} Kxe7 {[%emt 0:00:03]} 31. Qa3+ {[%emt 0:00:20]} Kf7 {[%emt 0:00:09]} 32. Qxa7 {[%emt 0:00:22]} Rd7 {[%emt 0:00:02]} 33. h5 {[%emt 0:01:40]} Ne6 {[%emt 0:01:31]} 34. f3 {[%emt 0:03:05]} Nf4 {[%emt 0:01:38]} 35. h6 {[%emt 0:00:35]} Re7 {[%emt 0:00:11]} 36. Be4 {[%emt 0:00:52]} f5 {[%emt 0:02:16]} 37. Bxd5+ {[%emt 0:00:20]} Nxd5 {[%emt 0:00:08]} 38. Qb8 {[%emt 0:00:25]} Kf6 {[%emt 0:00:12]} 39. Kf2 {[%emt 0:01:15]} f4 {[%emt 0:00:24]} 40. g3 {[%emt 0:00:00]} Kg5 {[%emt 0:00:00]} 41. gxf4+ {[%emt 0:08:24]} Nxf4 {[%emt 0:02:59]} 42. Qd8 {[%emt 0:02:04]} Nd5 {[%emt 0:00:06]} 43. a4 {[%emt 0:04:05]} Kxh6 {[%emt 0:00:59]} 44. b4 {[%emt 0:00:25]} Rf7 {[%emt 0:00:20]} 45. b5 {[%emt 0:01:07]} Nc3 {[%emt 0:00:29]} 46. bxc6 {[%emt 0:06:41]} bxc6 {[%emt 0:00:09]} 47. Qe8 {[%emt 0:00:29]} Rf4 {[%emt 0:00:24]} 48. Qxc6 {[%emt 0:04:40]} Rxd4 {[%emt 0:00:11]} 49. Qxc3 {[%emt 0:00:20]} Rxa4 {[%emt 0:00:07]} 50. Qd2+ {[%emt 0:01:46]} Kh5 {[%emt 0:00:39]} 51. Kg3 {[%emt 0:02:26]} g5 {[%emt 0:04:54]} 52. Qd7 {[%emt 0:02:04]} Ra6 {[%emt 0:00:06]} 53. Qxh7+ {[%emt 0:00:14]} Rh6 {[%emt 0:00:04]} 54. Qf7+ {[%emt 0:00:30]} Rg6 {[%emt 0:00:02]} 55. Qe8 {[%emt 0:01:10]} g4 {[%emt 0:00:22]} 56. f4 {[%emt 0:00:17]} 1-0

[Event "IIFL Wealth 4th Mumbai GM"]
[Site "Mumbai"]
[Date "2019.01.04"]
[Round "6"]
[White "Nguyen, Van Huy"]
[Black "Saurabh Anand"]
[Result "1/2-1/2"]
[ECO "E04"]
[WhiteElo "2438"]
[BlackElo "2246"]
[Annotator "NA"]
[PlyCount "148"]
[EventDate "2018.12.30"]
[EventType "swiss"]
[EventCountry "IND"]
[SourceTitle "playchess.com"]
[Source "ChessBase"]
[SourceQuality "1"]
[TimeControl "40/5400+30:1800+30"]

1. Nf3 {[%emt 0:00:00]} d5 {[%emt 0:00:00]} 2. d4 {[%emt 0:00:14]} Nf6 {[%emt 0:00:17]} 3. c4 {[%emt 0:00:28]} e6 {[%emt 0:00:14]} 4. g3 {[%emt 0:00:17]} dxc4 {[%emt 0:00:37]} 5. Bg2 {[%emt 0:00:33]} a6 {[%emt 0:00:18]} 6. O-O {[%emt 0:06:05]} Nc6 {[%emt 0:00:22]} 7. Bg5 {[%emt 0:01:02]} Be7 {[%emt 0:00:38]} 8. e3 {[%emt 0:00:58]} O-O {[%emt 0:00:39]} 9. Qc1 {[%emt 0:08:32]} h6 {[%emt 0:17:08]} 10. Bxf6 {[%emt 0:01:35]} Bxf6 {[%emt 0:00:09]} 11. Rd1 {[%emt 0:11:19]} Na5 {[%emt 0:07:16]} 12. Nbd2 {[%emt 0:04:34]} b5 {[%emt 0:02:07]} 13. b3 {[%emt 0:03:39]} Bb7 {[%emt 0:07:30]} 14. bxc4 {[%emt 0:01:43]} c5 {[%emt 0:01:31]} 15. cxb5 {[%emt 0:13:44]} cxd4 {[%emt 0:01:36]} 16. bxa6 {[%emt 0:02:26]} Rxa6 {[%emt 0:01:13]} 17. Nxd4 {[%emt 0:04:05]} Bxg2 {[%emt 0:09:15]} 18. Kxg2 {[%emt 0:00:46]} Bxd4 {[%emt 0:00:56]} 19. exd4 {[%emt 0:00:19]} Qxd4 {[%emt 0:00:39]} 20. Nb3 {[%emt 0:02:43]} Nxb3 {[%emt 0:02:55]} 21. axb3 {[%emt 0:00:37]} Qe4+ {[%emt 0:01:06]} 22. Kg1 {[%emt 0:01:57]} Rxa1 {[%emt 0:02:20]} 23. Qxa1 {[%emt 0:00:27]} Rb8 {[%emt 0:02:08]} 24. Qc3 {[%emt 0:01:43]} Qb7 {[%emt 0:01:35]} 25. Rd3 {[%emt 0:02:48]} Qb6 {[%emt 0:00:58]} 26. h4 {[%emt 0:00:50]} Qb7 {[%emt 0:03:07]} 27. Qd2 {[%emt 0:01:36]} Qb6 {[%emt 0:04:05]} 28. Qf4 {[%emt 0:01:11]} Rb7 {[%emt 0:03:14]} 29. Rc3 {[%emt 0:03:56]} Rd7 {[%emt 0:04:07]} 30. Qf3 {[%emt 0:07:54]} Qb4 {[%emt 0:10:02]} 31. Rd3 {[%emt 0:03:16]} Rc7 {[%emt 0:03:44]} 32. Kg2 {[%emt 0:00:33]} Qb6 {[%emt 0:02:30]} 33. Rc3 {[%emt 0:02:13]} Rd7 {[%emt 0:00:40]} 34. Rc4 {[%emt 0:01:23]} Qa6 {[%emt 0:02:52]} 35. Qe4 {[%emt 0:03:11]} Rd5 {[%emt 0:02:45]} 36. b4 {[%emt 0:02:01]} f5 {[%emt 0:01:33]} 37. Qc2 {[%emt 0:00:37]} Qb7 {[%emt 0:00:42]} 38. Kh2 {[%emt 0:03:05]} Kh7 {[%emt 0:00:20]} 39. Rc5 {[%emt 0:02:19]} Rd4 {[%emt 0:01:42]} 40. Rc4 {[%emt 0:00:00]} Rd5 {[%emt 0:00:00]} 41. h5 {[%emt 0:08:19]} Qd7 {[%emt 0:09:00]} 42. Rc7 {[%emt 0:00:58]} Qd6 {[%emt 0:02:06]} 43. Qc3 {[%emt 0:01:52]} e5 {[%emt 0:02:37]} 44. Qc4 {[%emt 0:03:57]} Qd8 {[%emt 0:06:54]} 45. b5 {[%emt 0:04:51]} Rd2 {[%emt 0:03:00]} 46. Rc8 {[%emt 0:05:58]} Qd5 {[%emt 0:00:09]} 47. Qxd5 {[%emt 0:00:26]} Rxd5 {[%emt 0:00:02]} 48. b6 {[%emt 0:00:20]} Rb5 {[%emt 0:00:10]} 49. Rb8 {[%emt 0:01:47]} Rb2 {[%emt 0:00:53]} 50. Kg2 {[%emt 0:00:48]} g5 {[%emt 0:02:42]} 51. Rb7+ {[%emt 0:01:26]} Kg8 {[%emt 0:00:09]} 52. Kf3 {[%emt 0:00:15]} Rb3+ {[%emt 0:00:49]} 53. Ke2 {[%emt 0:00:05]} f4 {[%emt 0:00:18]} 54. gxf4 {[%emt 0:02:14]} exf4 {[%emt 0:00:05]} 55. f3 {[%emt 0:00:14]} Rb2+ {[%emt 0:04:09]} 56. Kd1 {[%emt 0:00:52]} Kf8 {[%emt 0:03:00]} 57. Kc1 {[%emt 0:00:19]} Rb5 {[%emt 0:00:56]} 58. Kc2 {[%emt 0:00:07]} Ke8 {[%emt 0:00:54]} 59. Kd3 {[%emt 0:01:31]} Kd8 {[%emt 0:01:18]} 60. Ke4 {[%emt 0:02:33]} Rb3 {[%emt 0:00:54]} 61. Rb8+ {[%emt 0:00:40]} Kd7 {[%emt 0:00:38]} 62. b7 {[%emt 0:00:05]} Kc7 {[%emt 0:00:29]} 63. Rh8 {[%emt 0:00:22]} Kxb7 {[%emt 0:00:09]} 64. Rxh6 {[%emt 0:00:18]} Re3+ {[%emt 0:00:29]} 65. Kf5 {[%emt 0:00:02]} Rxf3 {[%emt 0:00:09]} 66. Rf6 {[%emt 0:02:06]} Rf1 {[%emt 0:02:11]} 67. h6 {[%emt 0:01:57]} f3 {[%emt 0:00:21]} 68. h7 {[%emt 0:00:40]} Rh1 {[%emt 0:00:33]} 69. Rf7+ {[%emt 0:01:36]} Kc6 {[%emt 0:00:12]} 70. Kxg5 {[%emt 0:00:34]} f2 {[%emt 0:00:41]} 71. Kg6 {[%emt 0:00:21]} Rg1+ {[%emt 0:00:05]} 72. Kh6 {[%emt 0:00:03]} f1=Q {[%emt 0:00:26]} 73. Rxf1 {[%emt 0:00:08]} Rxf1 {[%emt 0:00:03]} 74. h8=Q {[%emt 0:00:05]} Rh1+ 1/2-1/2

[Event "IIFL Wealth 4th Mumbai GM"]
[Site "Mumbai"]
[Date "2019.01.04"]
[Round "6"]
[White "Laxman, R.R."]
[Black "Trisha Kanyamarala"]
[Result "1-0"]
[ECO "E04"]
[WhiteElo "2436"]
[BlackElo "1942"]
[Annotator "NA"]
[PlyCount "69"]
[EventDate "2018.12.30"]
[EventType "swiss"]
[EventCountry "IND"]
[SourceTitle "playchess.com"]
[Source "ChessBase"]
[SourceQuality "1"]
[TimeControl "40/5400+30:1800+30"]

1. d4 {[%emt 0:00:00]} d5 {[%emt 0:00:00]} 2. Nf3 {[%emt 0:00:00]} e6 {[%emt 0:00:14]} 3. c4 {[%emt 0:00:00]} Nf6 {[%emt 0:00:15]} 4. g3 {[%emt 0:00:00]} dxc4 {[%emt 0:00:22]} 5. Bg2 {[%emt 0:00:04]} Bd7 {[%emt 0:00:11]} 6. Ne5 {[%emt 0:00:30]} Bc6 {[%emt 0:00:26]} 7. Nxc6 {[%emt 0:00:05]} Nxc6 {[%emt 0:00:05]} 8. e3 {[%emt 0:00:12]} Qd7 {[%emt 0:00:39]} 9. O-O {[%emt 0:02:08]} O-O-O {[%emt 0:00:28]} 10. Nd2 {[%emt 0:00:05]} e5 {[%emt 0:01:51]} 11. Nxc4 {[%emt 0:00:51]} exd4 {[%emt 0:00:30]} 12. Qb3 {[%emt 0:00:31]} Bd6 {[%emt 0:15:32]} 13. exd4 {[%emt 0:01:15]} Rde8 {[%emt 0:23:09]} 14. Be3 {[%emt 0:01:42]} Kb8 {[%emt 0:05:46]} 15. Rac1 {[%emt 0:00:22]} Ne4 {[%emt 0:11:32]} 16. f3 {[%emt 0:11:03]} Nf6 {[%emt 0:01:48]} 17. f4 {[%emt 0:00:05]} Ne4 {[%emt 0:07:31]} 18. Ne5 {[%emt 0:00:34]} Bxe5 {[%emt 0:00:12]} 19. fxe5 {[%emt 0:05:14]} f5 {[%emt 0:00:34]} 20. e6 {[%emt 0:04:22]} Qd6 {[%emt 0:01:55]} 21. d5 {[%emt 0:00:35]} Ne7 {[%emt 0:07:30]} 22. Rfd1 {[%emt 0:02:32]} g5 {[%emt 0:01:36]} 23. Bxe4 {[%emt 0:00:09]} fxe4 {[%emt 0:00:06]} 24. Bc5 {[%emt 0:01:25]} Qa6 {[%emt 0:00:44]} 25. Rc4 {[%emt 0:03:41]} Nc8 {[%emt 0:02:34]} 26. Rxe4 {[%emt 0:00:22]} h5 {[%emt 0:02:43]} 27. Rde1 {[%emt 0:05:06]} b6 {[%emt 0:01:21]} 28. Bd4 {[%emt 0:01:33]} Rhf8 {[%emt 0:00:46]} 29. Be5 {[%emt 0:00:15]} Rf5 {[%emt 0:01:08]} 30. Ra4 {[%emt 0:01:38]} Qb7 {[%emt 0:00:07]} 31. Qd3 {[%emt 0:01:05]} Rff8 {[%emt 0:01:48]} 32. Rc4 {[%emt 0:00:18]} Re7 {[%emt 0:03:26]} 33. Rec1 {[%emt 0:00:15]} Rd8 {[%emt 0:02:47]} 34. Rxc7 {[%emt 0:00:23]} Rxc7 {[%emt 0:01:21]} 35. Bxc7+ {[%emt 0:00:07]} 1-0

[Event "IIFL Wealth 4th Mumbai GM"]
[Site "Mumbai"]
[Date "2019.01.04"]
[Round "6"]
[White "Muthaiah AL"]
[Black "Rathnakaran, K.."]
[Result "1-0"]
[ECO "A40"]
[WhiteElo "2408"]
[BlackElo "2366"]
[Annotator "NA"]
[PlyCount "69"]
[EventDate "2018.12.30"]
[EventType "swiss"]
[EventCountry "IND"]
[SourceTitle "playchess.com"]
[Source "ChessBase"]
[SourceQuality "1"]
[TimeControl "40/5400+30:1800+30"]

1. d4 {[%emt 0:00:04]} g6 {[%emt 0:00:00]} 2. c4 {[%emt 0:00:41]} Bg7 {[%emt 0:00:00]} 3. Nf3 {[%emt 0:00:10]} d6 {[%emt 0:00:00]} 4. Nc3 {[%emt 0:00:35]} Bg4 {[%emt 0:00:22]} 5. e3 {[%emt 0:05:41]} Nc6 {[%emt 0:00:07]} 6. Be2 {[%emt 0:07:15]} e5 {[%emt 0:01:38]} 7. d5 {[%emt 0:02:14]} Nce7 {[%emt 0:00:11]} 8. e4 {[%emt 0:01:10]} Nh6 {[%emt 0:03:05]} 9. Ng5 {[%emt 0:03:40]} Bd7 {[%emt 0:02:37]} 10. O-O {[%emt 0:01:05]} Qc8 {[%emt 0:00:49]} 11. f4 {[%emt 0:06:05]} exf4 {[%emt 0:00:06]} 12. Bxf4 {[%emt 0:00:31]} f6 {[%emt 0:00:04]} 13. Nf3 {[%emt 0:01:22]} g5 {[%emt 0:00:07]} 14. Be3 {[%emt 0:05:37]} O-O {[%emt 0:00:40]} 15. c5 {[%emt 0:04:29]} Ng4 {[%emt 0:01:09]} 16. Bd4 {[%emt 0:00:34]} Ng6 {[%emt 0:02:41]} 17. cxd6 {[%emt 0:26:03]} c5 {[%emt 0:01:09]} 18. dxc6 {[%emt 0:00:54]} bxc6 {[%emt 0:00:06]} 19. Rc1 {[%emt 0:05:08]} Qe8 {[%emt 0:12:35]} 20. Nxg5 {[%emt 0:04:46]} c5 {[%emt 0:03:14]} 21. Bxg4 {[%emt 0:06:15]} cxd4 {[%emt 0:08:55]} 22. Nd5 {[%emt 0:03:47]} Bxg4 {[%emt 0:02:58]} 23. Qxg4 {[%emt 0:00:08]} fxg5 {[%emt 0:00:03]} 24. d7 {[%emt 0:02:34]} Rxf1+ {[%emt 0:00:22]} 25. Kxf1 {[%emt 0:00:34]} Qf8+ {[%emt 0:08:38]} 26. Qf5 {[%emt 0:00:22]} Nh4 {[%emt 0:02:06]} 27. Qxf8+ {[%emt 0:00:58]} Rxf8+ {[%emt 0:00:08]} 28. Ke2 {[%emt 0:00:23]} d3+ {[%emt 0:00:10]} 29. Kxd3 {[%emt 0:00:23]} Ng6 {[%emt 0:00:09]} 30. Rc7 {[%emt 0:06:22]} a6 {[%emt 0:06:36]} 31. Kc4 {[%emt 0:02:17]} Ne5+ {[%emt 0:09:13]} 32. Kc5 {[%emt 0:01:01]} Nf7 {[%emt 0:01:28]} 33. Ne7+ {[%emt 0:02:12]} Kh8 {[%emt 0:00:07]} 34. Rc8 {[%emt 0:00:23]} Nd8 {[%emt 0:00:49]} 35. Nc6 {[%emt 0:00:39]} 1-0